[Event "Lueneburg Open-A 2019"]
[Site "Lueneburg"]
[Date "2019.08.08"]
[Round "6.25"]
[White "Serreck, Uwe"]
[Black "Jurkic, Bosiljko"]
[Result "0-1"]
[ECO "B40"]
[WhiteElo "1869"]
[BlackElo "2046"]
[Annotator "NA"]
[PlyCount "84"]
[EventDate "2019.08.03"]
[EventType "swiss"]
[EventCountry "GER"]
[SourceTitle "playchess.com"]
[Source "ChessBase"]
[SourceQuality "1"]
[TimeControl "40/5400+30:1800+30"]

1. e4 {[%emt 0:00:00]} c5 {[%emt 0:00:00]} 2. b3 {[%emt 0:00:00]} b6 {[%emt 0:00:23]} 3. Bb2 {[%emt 0:00:00]} Bb7 {[%emt 0:00:09]} 4. d3 {[%emt 0:03:23]} e6 {[%emt 0:00:59]} 5. Nf3 {[%emt 0:01:26]} Nf6 {[%emt 0:00:58]} 6. Nbd2 {[%emt 0:04:27]} d5 {[%emt 0:07:34]} 7. Qe2 {[%emt 0:03:39]} Be7 {[%emt 0:03:25]} 8. g3 {[%emt 0:00:04]} Nc6 {[%emt 0:01:24]} 9. c3 {[%emt 0:41:39]} d4 {[%emt 0:16:06]} 10. c4 {[%emt 0:00:26]} Nb4 {[%emt 0:07:00]} 11. Qd1 {[%emt 0:02:34]} a5 {[%emt 0:02:52]} 12. a4 {[%emt 0:07:48]} h5 {[%emt 0:04:14]} 13. Ba3 {[%emt 0:04:20]} Nc6 {[%emt 0:01:53]} 14. Bg2 {[%emt 0:00:09]} Ng4 {[%emt 0:04:59]} 15. h3 {[%emt 0:01:04]} Nh6 {[%emt 0:08:33]} 16. Qe2 {[%emt 0:00:22]} Qc7 {[%emt 0:02:54]} 17. O-O-O {[%emt 0:00:36]} O-O-O {[%emt 0:04:06]} 18. Kb1 {[%emt 0:02:19]} Kb8 {[%emt 0:00:16]} 19. Bc1 {[%emt 0:09:05]} Ka7 {[%emt 0:00:31]} 20. Nh2 {[%emt 0:02:35]} h4 {[%emt 0:05:04]} 21. g4 {[%emt 0:01:55]} g5 22. Ndf3 {[%emt 0:01:23]} f6 23. Nf1 {[%emt 0:01:14]} Nf7 24. N1d2 {[%emt 0:01:20]} Rhe8 25. Rhe1 {[%emt 0:00:26]} Bd6 26. Qf1 {[%emt 0:05:28]} Bf4 27. Kb2 {[%emt 0:03:06]} Nb4 28. Kb1 {[%emt 0:00:47]} Bc6 29. Bh1 {[%emt 0:00:31]} Qd7 30. Ba3 {[%emt 0:02:54]} Bxa4 {[%emt 0:21:26]} 31. Bxb4 {[%emt 0:00:00]} axb4 32. Kb2 {[%emt 0:01:00]} Bc6 {[%emt 0:11:14]} 33. Ra1+ {[%emt 0:00:00]} Kb7 {[%emt 0:00:30]} 34. Ra2 {[%emt 0:01:00]} Ra8 {[%emt 0:00:00]} 35. Rea1 {[%emt 0:00:30]} Rxa2+ {[%emt 0:00:00]} 36. Rxa2 {[%emt 0:00:00]} Ra8 37. Qa1 {[%emt 0:01:00]} Rxa2+ {[%emt 0:00:00]} 38. Qxa2 {[%emt 0:00:00]} f5 39. Qb1 {[%emt 0:01:00]} fxg4 {[%emt 0:00:00]} 40. hxg4 {[%emt 0:00:30]} e5 {[%emt 0:00:00]} 41. Qg1 {[%emt 0:00:03]} Nh6 42. Kc2 {[%emt 0:30:57]} Qxg4 {[%emt 0:01:47]} 0-1

[Event "Lueneburg Open-A 2019"]
[Site "Lueneburg"]
[Date "2019.08.08"]
[Round "6.26"]
[White "Grote, Dirk"]
[Black "Beuter, Christof"]
[Result "1-0"]
[ECO "E66"]
[WhiteElo "2037"]
[BlackElo "1930"]
[Annotator "NA"]
[PlyCount "53"]
[EventDate "2019.08.03"]
[EventType "swiss"]
[EventCountry "GER"]
[SourceTitle "playchess.com"]
[Source "ChessBase"]
[SourceQuality "1"]
[TimeControl "40/5400+30:1800+30"]

1. d4 {[%emt 0:00:00]} Nf6 {[%emt 0:00:00]} 2. Nf3 {[%emt 0:00:00]} g6 {[%emt 0:00:00]} 3. g3 {[%emt 0:00:23]} Bg7 {[%emt 0:00:06]} 4. Bg2 {[%emt 0:00:11]} O-O {[%emt 0:00:34]} 5. c4 {[%emt 0:00:12]} d6 {[%emt 0:00:25]} 6. O-O {[%emt 0:00:09]} Nc6 {[%emt 0:00:43]} 7. Nc3 {[%emt 0:00:12]} a6 {[%emt 0:00:58]} 8. d5 {[%emt 0:02:35]} Na5 {[%emt 0:00:11]} 9. Nd2 {[%emt 0:00:28]} c5 {[%emt 0:00:15]} 10. Qc2 {[%emt 0:01:11]} Bf5 {[%emt 0:02:01]} 11. e4 {[%emt 0:01:16]} Bd7 {[%emt 0:00:16]} 12. b3 {[%emt 0:03:33]} b5 {[%emt 0:02:30]} 13. Bb2 {[%emt 0:01:00]} Rb8 {[%emt 0:03:06]} 14. Rab1 {[%emt 0:01:33]} Bh6 {[%emt 0:02:14]} 15. f4 {[%emt 0:18:52]} Qc7 {[%emt 0:08:21]} 16. Nd1 {[%emt 0:04:41]} Bg7 {[%emt 0:08:37]} 17. Ne3 {[%emt 0:03:37]} bxc4 {[%emt 0:04:18]} 18. bxc4 {[%emt 0:00:28]} Rb4 {[%emt 0:00:46]} 19. Bc3 {[%emt 0:03:52]} Ba4 {[%emt 0:02:32]} 20. Qd3 {[%emt 0:03:16]} Rbb8 {[%emt 0:01:51]} 21. Nf3 {[%emt 0:11:49]} Bd7 {[%emt 0:04:42]} 22. h3 {[%emt 0:07:16]} Nh5 {[%emt 0:02:52]} 23. Bxg7 {[%emt 0:02:05]} Kxg7 {[%emt 0:00:13]} 24. Kh2 {[%emt 0:00:17]} Rxb1 {[%emt 0:03:58]} 25. Rxb1 {[%emt 0:00:13]} Rb8 {[%emt 0:00:07]} 26. Rxb8 {[%emt 0:00:27]} Qxb8 {[%emt 0:00:28]} 27. Qc3+ {[%emt 0:00:11]} 1-0

[Event "Lueneburg Open-A 2019"]
[Site "Lueneburg"]
[Date "2019.08.08"]
[Round "6.27"]
[White "Kiesel, Harald"]
[Black "Kasipour Azbari, Seyed Arvin"]
[Result "1-0"]
[ECO "B25"]
[WhiteElo "2023"]
[BlackElo "1765"]
[Annotator "NA"]
[PlyCount "63"]
[EventDate "2019.08.03"]
[EventType "swiss"]
[EventCountry "GER"]
[SourceTitle "playchess.com"]
[Source "ChessBase"]
[SourceQuality "1"]
[TimeControl "40/5400+30:1800+30"]

1. e4 {[%emt 0:00:00]} c5 {[%emt 0:00:31]} 2. Nc3 {[%emt 0:00:02]} Nc6 {[%emt 0:00:17]} 3. g3 {[%emt 0:01:10]} g6 {[%emt 0:00:22]} 4. Bg2 {[%emt 0:00:07]} Bg7 {[%emt 0:00:59]} 5. d3 {[%emt 0:00:10]} d6 {[%emt 0:00:50]} 6. f4 {[%emt 0:00:31]} e6 {[%emt 0:01:00]} 7. Nf3 {[%emt 0:00:37]} Nge7 {[%emt 0:01:17]} 8. Be3 {[%emt 0:00:29]} Nd4 {[%emt 0:00:18]} 9. O-O {[%emt 0:00:31]} O-O {[%emt 0:01:47]} 10. e5 {[%emt 0:01:03]} Nef5 {[%emt 0:00:30]} 11. Bf2 {[%emt 0:00:13]} Nxf3+ {[%emt 0:00:28]} 12. Qxf3 {[%emt 0:00:13]} dxe5 {[%emt 0:11:12]} 13. Bxc5 {[%emt 0:02:46]} exf4 {[%emt 0:06:48]} 14. Bxf8 {[%emt 0:04:15]} Kxf8 {[%emt 0:04:48]} 15. Qxf4 {[%emt 0:04:57]} Qb6+ {[%emt 0:01:55]} 16. Kh1 {[%emt 0:01:02]} Qxb2 {[%emt 0:00:52]} 17. Na4 {[%emt 0:10:18]} Qd4 {[%emt 0:07:04]} 18. Rab1 {[%emt 0:05:03]} Qxf4 {[%emt 0:09:46]} 19. Rxf4 {[%emt 0:03:15]} Rb8 {[%emt 0:02:45]} 20. Nc5 {[%emt 0:05:51]} b6 {[%emt 0:02:49]} 21. Ra4 {[%emt 0:03:21]} Ne3 {[%emt 0:07:24]} 22. Rxa7 {[%emt 0:04:51]} Bd4 {[%emt 0:09:32]} 23. Nd7+ {[%emt 0:02:15]} Bxd7 {[%emt 0:00:48]} 24. Rxd7 {[%emt 0:00:07]} e5 {[%emt 0:01:58]} 25. a4 {[%emt 0:09:27]} Nxg2 {[%emt 0:02:15]} 26. Kxg2 {[%emt 0:00:03]} Rc8 {[%emt 0:01:24]} 27. c4 {[%emt 0:00:45]} Ra8 {[%emt 0:00:21]} 28. g4 {[%emt 0:11:22]} Ke8 {[%emt 0:03:57]} 29. Rb7 {[%emt 0:00:11]} f5 {[%emt 0:02:50]} 30. gxf5 {[%emt 0:00:06]} gxf5 {[%emt 0:00:09]} 31. Rf1 {[%emt 0:03:12]} f4 {[%emt 0:00:16]} 32. Rf3 {[%emt 0:27:47]} 1-0

[Event "Lueneburg Open-A 2019"]
[Site "Lueneburg"]
[Date "2019.08.08"]
[Round "6.28"]
[White "Andersen, Jens Knud"]
[Black "Krotofil, Kurt"]
[Result "1-0"]
[ECO "D05"]
[WhiteElo "2141"]
[BlackElo "1889"]
[Annotator "NA"]
[PlyCount "47"]
[EventDate "2019.08.03"]
[EventType "swiss"]
[EventCountry "GER"]
[SourceTitle "playchess.com"]
[Source "ChessBase"]
[SourceQuality "1"]
[TimeControl "40/5400+30:1800+30"]

1. d4 {[%emt 0:01:03]} Nf6 {[%emt 0:00:00]} 2. Nf3 {[%emt 0:00:26]} d5 {[%emt 0:00:26]} 3. e3 {[%emt 0:00:34]} e6 {[%emt 0:01:44]} 4. Bd3 {[%emt 0:00:13]} Bd6 {[%emt 0:01:49]} 5. O-O {[%emt 0:00:10]} O-O {[%emt 0:00:19]} 6. b3 {[%emt 0:00:13]} Nbd7 {[%emt 0:02:09]} 7. Bb2 {[%emt 0:00:22]} c5 {[%emt 0:03:01]} 8. Nbd2 {[%emt 0:10:50]} Qc7 {[%emt 0:05:25]} 9. c4 {[%emt 0:02:45]} cxd4 {[%emt 0:02:26]} 10. exd4 {[%emt 0:01:21]} b6 {[%emt 0:02:17]} 11. Rc1 {[%emt 0:02:46]} Qb8 {[%emt 0:02:25]} 12. Re1 {[%emt 0:08:12]} Bb7 {[%emt 0:03:41]} 13. Ne5 {[%emt 0:00:39]} Rd8 {[%emt 0:09:15]} 14. Qe2 {[%emt 0:06:12]} a6 {[%emt 0:07:48]} 15. Qe3 {[%emt 0:13:29]} Nf8 {[%emt 0:08:54]} 16. c5 {[%emt 0:03:47]} Bxe5 {[%emt 0:14:23]} 17. dxe5 {[%emt 0:00:24]} d4 {[%emt 0:01:31]} 18. Qg3 {[%emt 0:12:17]} Nd5 {[%emt 0:03:46]} 19. c6 {[%emt 0:00:56]} Bc8 {[%emt 0:01:19]} 20. Bxd4 {[%emt 0:01:16]} Ra7 {[%emt 0:01:07]} 21. Ne4 {[%emt 0:11:28]} Nb4 {[%emt 0:02:05]} 22. Nd6 {[%emt 0:02:22]} Nxd3 {[%emt 0:03:57]} 23. Qxd3 {[%emt 0:00:08]} a5 {[%emt 0:05:37]} 24. Qe3 {[%emt 0:00:48]} 1-0

[Event "Lueneburg Open-A 2019"]
[Site "Lueneburg"]
[Date "2019.08.08"]
[Round "6.30"]
[White "Reuker, Matthias"]
[Black "Melzer, Marcel"]
[Result "1-0"]
[ECO "B33"]
[WhiteElo "2012"]
[BlackElo "1843"]
[Annotator "NA"]
[PlyCount "63"]
[EventDate "2019.08.03"]
[EventType "swiss"]
[EventCountry "GER"]
[SourceTitle "playchess.com"]
[Source "ChessBase"]
[SourceQuality "1"]
[TimeControl "40/5400+30:1800+30"]

1. e4 {[%emt 0:01:48]} c5 {[%emt 0:00:00]} 2. Nf3 {[%emt 0:00:05]} Nc6 {[%emt 0:00:00]} 3. d4 {[%emt 0:00:10]} cxd4 {[%emt 0:00:00]} 4. Nxd4 {[%emt 0:00:04]} Nf6 {[%emt 0:00:05]} 5. Nc3 {[%emt 0:00:05]} e5 {[%emt 0:00:06]} 6. Ndb5 {[%emt 0:00:06]} d6 {[%emt 0:00:10]} 7. Nd5 {[%emt 0:00:09]} Nxd5 {[%emt 0:00:06]} 8. exd5 {[%emt 0:00:04]} Nb8 {[%emt 0:00:15]} 9. a4 {[%emt 0:00:06]} a6 {[%emt 0:02:04]} 10. Na3 {[%emt 0:01:17]} Be7 {[%emt 0:01:55]} 11. Nc4 {[%emt 0:00:17]} Nd7 {[%emt 0:04:50]} 12. a5 {[%emt 0:00:30]} b5 {[%emt 0:01:45]} 13. axb6 {[%emt 0:00:16]} Nxb6 {[%emt 0:03:25]} 14. Bd2 {[%emt 0:02:04]} Nxc4 {[%emt 0:09:49]} 15. Bxc4 {[%emt 0:00:05]} Qb6 {[%emt 0:09:47]} 16. Qe2 {[%emt 0:13:37]} O-O {[%emt 0:02:05]} 17. b4 {[%emt 0:12:48]} Bd7 {[%emt 0:07:29]} 18. O-O {[%emt 0:02:32]} Bb5 {[%emt 0:06:35]} 19. Bd3 {[%emt 0:01:02]} Qd4 {[%emt 0:14:23]} 20. c4 {[%emt 0:02:07]} Bd7 {[%emt 0:07:17]} 21. Be3 {[%emt 0:03:30]} Qh4 {[%emt 0:01:01]} 22. f3 {[%emt 0:09:44]} f5 {[%emt 0:03:08]} 23. Bf2 {[%emt 0:01:30]} Qh5 {[%emt 0:05:25]} 24. c5 {[%emt 0:02:29]} e4 {[%emt 0:07:11]} 25. fxe4 {[%emt 0:00:32]} Qxe2 {[%emt 0:00:08]} 26. Bxe2 {[%emt 0:00:01]} fxe4 {[%emt 0:00:58]} 27. c6 {[%emt 0:04:18]} Bf5 {[%emt 0:03:36]} 28. Be3 {[%emt 0:02:41]} Bf6 {[%emt 0:02:20]} 29. Rxa6 {[%emt 0:00:27]} Rxa6 {[%emt 0:03:18]} 30. Bxa6 {[%emt 0:00:08]} Bc8 {[%emt 0:01:19]} 31. Bxc8 {[%emt 0:01:00]} Rxc8 {[%emt 0:00:03]} 32. b5 {[%emt 0:00:12]} 1-0

[Event "Lueneburg Open-A 2019"]
[Site "Lueneburg"]
[Date "2019.08.08"]
[Round "6.31"]
[White "Schaefer, Maik"]
[Black "Nielsen, Joerg"]
[Result "0-1"]
[ECO "B05"]
[WhiteElo "1781"]
[BlackElo "2000"]
[Annotator "NA"]
[PlyCount "144"]
[EventDate "2019.08.03"]
[EventType "swiss"]
[EventCountry "GER"]
[SourceTitle "playchess.com"]
[Source "ChessBase"]
[SourceQuality "1"]
[TimeControl "40/5400+30:1800+30"]

1. e4 {[%emt 0:08:02]} Nf6 {[%emt 0:00:00]} 2. e5 {[%emt 0:00:47]} Nd5 {[%emt 0:00:00]} 3. d4 {[%emt 0:00:09]} d6 {[%emt 0:00:00]} 4. Nf3 {[%emt 0:00:12]} Bg4 {[%emt 0:00:32]} 5. Be2 {[%emt 0:00:34]} e6 {[%emt 0:00:30]} 6. O-O {[%emt 0:00:40]} Be7 {[%emt 0:00:57]} 7. c4 {[%emt 0:01:07]} Nb6 {[%emt 0:00:14]} 8. Nc3 {[%emt 0:00:48]} O-O {[%emt 0:00:52]} 9. Be3 {[%emt 0:00:19]} Nc6 {[%emt 0:01:01]} 10. c5 {[%emt 0:13:11]} dxc5 {[%emt 0:04:01]} 11. dxc5 {[%emt 0:01:46]} Nd7 {[%emt 0:01:44]} 12. Qa4 {[%emt 0:22:12]} Bxf3 {[%emt 0:02:44]} 13. Bxf3 {[%emt 0:00:27]} Ndxe5 {[%emt 0:00:34]} 14. Be4 {[%emt 0:03:44]} f5 {[%emt 0:10:19]} 15. Rad1 {[%emt 0:02:00]} Qc8 {[%emt 0:01:01]} 16. Bc2 {[%emt 0:02:01]} Kh8 {[%emt 0:02:25]} 17. b4 {[%emt 0:05:16]} a6 {[%emt 0:00:15]} 18. Rfe1 {[%emt 0:02:42]} Bf6 {[%emt 0:02:41]} 19. Ne2 {[%emt 0:00:49]} Nc4 {[%emt 0:07:18]} 20. Bc1 {[%emt 0:01:45]} Nb2 {[%emt 0:02:47]} 21. Bxb2 {[%emt 0:00:23]} Bxb2 {[%emt 0:00:06]} 22. Qb3 {[%emt 0:01:34]} Be5 {[%emt 0:04:32]} 23. a3 {[%emt 0:03:40]} Qe8 {[%emt 0:03:30]} 24. Qh3 {[%emt 0:01:27]} Rd8 {[%emt 0:02:23]} 25. f4 {[%emt 0:05:53]} Rxd1 {[%emt 0:00:39]} 26. Rxd1 {[%emt 0:00:24]} Bf6 {[%emt 0:00:55]} 27. g4 {[%emt 0:02:00]} g6 {[%emt 0:01:40]} 28. Nc1 {[%emt 0:03:32]} Nd4 {[%emt 0:03:24]} 29. Bb1 {[%emt 0:00:55]} Qc6 {[%emt 0:00:52]} 30. Kf2 {[%emt 0:01:34]} fxg4 {[%emt 0:03:39]} 31. Qxg4 {[%emt 0:00:44]} Nf5 {[%emt 0:09:24]} 32. Ne2 {[%emt 0:01:18]} Rd8 {[%emt 0:22:42]} 33. Rxd8+ {[%emt 0:03:15]} Bxd8 {[%emt 0:00:06]} 34. Ng3 {[%emt 0:01:54]} Qd5 {[%emt 0:02:13]} 35. Qe2 {[%emt 0:04:05]} Qd4+ {[%emt 0:02:19]} 36. Kg2 {[%emt 0:02:32]} Ne3+ {[%emt 0:01:06]} 37. Kh1 {[%emt 0:00:32]} Qxf4 {[%emt 0:02:36]} 38. Be4 {[%emt 0:00:38]} c6 {[%emt 0:02:02]} 39. Qd2 {[%emt 0:01:19]} Bh4 {[%emt 0:01:51]} 40. Bg2 {[%emt 0:03:07]} Nxg2 {[%emt 0:02:38]} 41. Qxg2 {[%emt 0:00:53]} Bxg3 {[%emt 0:03:51]} 42. hxg3 {[%emt 0:00:13]} Qc1+ {[%emt 0:00:17]} 43. Kh2 {[%emt 0:00:13]} Qe3 {[%emt 0:01:34]} 44. Qf1 {[%emt 0:00:32]} Kg7 {[%emt 0:00:24]} 45. Qd1 {[%emt 0:00:22]} Qf2+ {[%emt 0:00:54]} 46. Kh3 {[%emt 0:00:13]} Qf5+ {[%emt 0:00:30]} 47. g4 {[%emt 0:00:30]} Qd5 {[%emt 0:00:32]} 48. Qe1 {[%emt 0:00:35]} g5 {[%emt 0:00:22]} 49. Kg3 {[%emt 0:02:03]} e5 {[%emt 0:03:48]} 50. Qf2 {[%emt 0:01:49]} Qd4 {[%emt 0:00:28]} 51. Qe2 {[%emt 0:01:06]} Qf4+ {[%emt 0:01:22]} 52. Kg2 {[%emt 0:00:26]} Kf6 {[%emt 0:01:55]} 53. Qd1 {[%emt 0:00:25]} Qe4+ {[%emt 0:00:52]} 54. Kh3 {[%emt 0:00:44]} Qe3+ {[%emt 0:01:04]} 55. Kh2 {[%emt 0:00:26]} Qd4 {[%emt 0:00:13]} 56. Qb3 {[%emt 0:00:51]} Qxg4 {[%emt 0:01:23]} 57. Qg8 {[%emt 0:00:17]} Qh5+ {[%emt 0:00:48]} 58. Kg2 {[%emt 0:00:07]} Qf7 {[%emt 0:00:44]} 59. Qd8+ {[%emt 0:00:26]} Qe7 {[%emt 0:01:58]} 60. Qc8 {[%emt 0:00:30]} e4 {[%emt 0:02:31]} 61. Qh8+ {[%emt 0:00:26]} Kg6 {[%emt 0:00:12]} 62. Qg8+ {[%emt 0:00:15]} Kh5 {[%emt 0:00:29]} 63. Qc8 {[%emt 0:00:13]} Qf7 {[%emt 0:01:22]} 64. Qh3+ {[%emt 0:00:14]} Kg6 {[%emt 0:00:07]} 65. Qc8 {[%emt 0:00:17]} h5 {[%emt 0:01:10]} 66. Qd8 {[%emt 0:00:19]} h4 {[%emt 0:01:07]} 67. Qd6+ {[%emt 0:00:07]} Kh5 {[%emt 0:00:33]} 68. Qd8 {[%emt 0:00:13]} Qf3+ {[%emt 0:00:50]} 69. Kg1 {[%emt 0:00:05]} h3 {[%emt 0:00:55]} 70. Qh8+ {[%emt 0:00:07]} Kg4 {[%emt 0:00:51]} 71. Qc8+ {[%emt 0:00:08]} Kg3 {[%emt 0:00:25]} 72. Qc7+ {[%emt 0:00:12]} Qf4 {[%emt 0:13:57]} 0-1

[Event "Lueneburg Open-A 2019"]
[Site "Lueneburg"]
[Date "2019.08.08"]
[Round "6.32"]
[White "Darpan, Inani"]
[Black "Ishak, Rashid"]
[Result "1-0"]
[ECO "C56"]
[WhiteElo "1956"]
[BlackElo "2141"]
[Annotator "NA"]
[PlyCount "63"]
[EventDate "2019.08.03"]
[EventType "swiss"]
[EventCountry "GER"]
[SourceTitle "playchess.com"]
[Source "ChessBase"]
[SourceQuality "1"]
[TimeControl "40/5400+30:1800+30"]

1. e4 e5 {[%emt 0:01:19]} 2. Nf3 {[%emt 1:31:00]} Nc6 3. Bc4 {[%emt 0:00:30]} Nf6 {[%emt 0:00:30]} 4. d4 {[%emt 0:00:30]} exd4 {[%emt 0:00:11]} 5. O-O {[%emt 0:00:30]} Nxe4 {[%emt 0:00:14]} 6. Re1 {[%emt 0:00:30]} d5 {[%emt 0:00:20]} 7. Bxd5 {[%emt 0:00:00]} Qxd5 {[%emt 0:00:00]} 8. Nc3 {[%emt 0:01:00]} Qh5 {[%emt 0:00:00]} 9. Nxe4 {[%emt 0:00:30]} Be6 {[%emt 0:00:02]} 10. Bg5 {[%emt 0:00:30]} Bb4 {[%emt 0:00:10]} 11. Nxd4 {[%emt 0:00:30]} Qxd1 {[%emt 0:04:07]} 12. Rexd1 {[%emt 0:00:00]} h6 {[%emt 0:23:04]} 13. Nxe6 {[%emt 0:00:00]} fxe6 {[%emt 0:00:00]} 14. Bf4 {[%emt 0:01:30]} e5 {[%emt 0:03:50]} 15. Be3 {[%emt 0:00:30]} Rf8 {[%emt 0:10:20]} 16. c3 {[%emt 0:00:30]} Be7 {[%emt 0:00:25]} 17. b4 {[%emt 0:00:30]} Rf7 {[%emt 0:03:19]} 18. Rd5 {[%emt 0:00:30]} a6 {[%emt 0:01:10]} 19. a4 {[%emt 0:00:30]} b6 {[%emt 0:03:49]} 20. Rad1 {[%emt 0:00:30]} Rd8 {[%emt 0:02:08]} 21. Rxd8+ Bxd8 {[%emt 0:05:08]} 22. b5 {[%emt 0:01:00]} axb5 {[%emt 0:00:10]} 23. axb5 {[%emt 0:00:00]} Na7 {[%emt 0:01:05]} 24. Rd5 {[%emt 0:01:00]} Re7 {[%emt 0:00:45]} 25. f3 {[%emt 0:00:30]} Re6 {[%emt 0:00:18]} 26. c4 {[%emt 0:00:30]} c6 {[%emt 0:05:30]} 27. Rxd8+ {[%emt 0:00:30]} Kxd8 {[%emt 0:35:36]} 28. Bxb6+ {[%emt 0:00:30]} Kc8 {[%emt 0:00:30]} 29. Bxa7 {[%emt 0:00:00]} Re7 {[%emt 0:00:00]} 30. Bc5 {[%emt 0:01:00]} Rd7 {[%emt 0:00:00]} 31. Nd6+ {[%emt 0:00:30]} Kb8 {[%emt 0:00:00]} 32. b6 {[%emt 0:00:30]} 1-0

[Event "Lueneburg Open-A 2019"]
[Site "Lueneburg"]
[Date "2019.08.08"]
[Round "6.33"]
[White "Wozny, Michael"]
[Black "Weidenhoefer, Max"]
[Result "1/2-1/2"]
[ECO "A04"]
[WhiteElo "1942"]
[BlackElo "1805"]
[Annotator "NA"]
[PlyCount "62"]
[EventDate "2019.08.03"]
[EventType "swiss"]
[EventCountry "GER"]
[SourceTitle "playchess.com"]
[Source "ChessBase"]
[SourceQuality "1"]
[TimeControl "40/5400+30:1800+30"]

1. Nf3 {[%emt 0:00:00]} c5 {[%emt 0:00:00]} 2. g3 {[%emt 0:00:14]} g6 {[%emt 0:00:11]} 3. Bg2 {[%emt 0:00:22]} Bg7 {[%emt 0:00:06]} 4. O-O {[%emt 0:00:55]} Nc6 {[%emt 0:00:42]} 5. c3 {[%emt 0:00:04]} e5 {[%emt 0:08:24]} 6. d3 {[%emt 0:00:38]} Nge7 {[%emt 0:01:04]} 7. Be3 {[%emt 0:01:11]} d6 {[%emt 0:02:16]} 8. d4 {[%emt 0:00:57]} cxd4 {[%emt 0:09:09]} 9. cxd4 {[%emt 0:00:07]} Qb6 {[%emt 0:06:54]} 10. Na3 {[%emt 0:00:23]} e4 {[%emt 0:09:17]} 11. d5 {[%emt 0:01:13]} Qxb2 {[%emt 0:08:54]} 12. Nc4 {[%emt 0:00:51]} Qxa1 {[%emt 0:01:27]} 13. Qa4 {[%emt 0:01:44]} Qxf1+ {[%emt 0:12:51]} 14. Bxf1 {[%emt 0:01:05]} O-O {[%emt 0:01:21]} 15. dxc6 {[%emt 0:00:30]} exf3 {[%emt 0:00:16]} 16. Nxd6 {[%emt 0:00:35]} fxe2 {[%emt 0:01:59]} 17. Bxe2 {[%emt 0:00:04]} Nxc6 {[%emt 0:00:50]} 18. Nxc8 {[%emt 0:00:57]} Raxc8 {[%emt 0:02:02]} 19. Kg2 {[%emt 0:00:22]} a6 {[%emt 0:00:34]} 20. Bg4 {[%emt 0:02:22]} Rcd8 {[%emt 0:01:26]} 21. Bf3 {[%emt 0:02:14]} Rc8 {[%emt 0:11:25]} 22. Bg4 {[%emt 0:00:02]} f5 {[%emt 0:02:39]} 23. Bf3 {[%emt 0:00:12]} Kh8 {[%emt 0:00:18]} 24. Qb3 {[%emt 0:02:16]} Nd8 {[%emt 0:03:41]} 25. Qa3 {[%emt 0:05:32]} Rc3 {[%emt 0:01:10]} 26. Qd6 {[%emt 0:01:58]} Rc2 {[%emt 0:02:20]} 27. Bd4 {[%emt 0:01:30]} Kg8 {[%emt 0:02:56]} 28. Qd5+ {[%emt 0:07:26]} Nf7 {[%emt 0:00:36]} 29. Be3 {[%emt 0:03:28]} Re8 {[%emt 0:01:21]} 30. Ba7 {[%emt 0:08:38]} Rb2 {[%emt 0:02:06]} 31. Qc4 {[%emt 0:05:09]} Rb5 {[%emt 0:05:01]} 1/2-1/2

[Event "Lueneburg Open-A 2019"]
[Site "Lueneburg"]
[Date "2019.08.08"]
[Round "6.34"]
[White "Buchaeckert, Juergen"]
[Black "Kiesel, Lucas"]
[Result "0-1"]
[ECO "B00"]
[WhiteElo "1839"]
[BlackElo "1966"]
[Annotator "NA"]
[PlyCount "102"]
[EventDate "2019.08.03"]
[EventType "swiss"]
[EventCountry "GER"]
[SourceTitle "playchess.com"]
[Source "ChessBase"]
[SourceQuality "1"]
[TimeControl "40/5400+30:1800+30"]

1. e4 {[%emt 0:00:00]} e5 {[%emt 0:00:00]} 2. d4 {[%emt 0:00:00]} Nc6 {[%emt 0:00:00]} 3. dxe5 {[%emt 0:00:00]} Nxe5 {[%emt 0:00:00]} 4. Nf3 {[%emt 0:00:54]} Nxf3+ {[%emt 0:04:46]} 5. Qxf3 {[%emt 0:00:17]} Bc5 {[%emt 0:01:26]} 6. Bc4 {[%emt 0:06:12]} Qe7 {[%emt 0:01:07]} 7. O-O {[%emt 0:04:57]} d6 {[%emt 0:03:38]} 8. Nc3 {[%emt 0:13:24]} c6 {[%emt 0:04:29]} 9. Qg3 {[%emt 0:03:12]} Nf6 {[%emt 0:04:53]} 10. Bg5 {[%emt 0:04:37]} h6 {[%emt 0:14:12]} 11. Bd2 {[%emt 0:04:06]} Be6 {[%emt 0:05:58]} 12. Bd3 {[%emt 0:07:22]} Bb6 {[%emt 0:05:15]} 13. b4 {[%emt 0:04:18]} g5 {[%emt 0:08:57]} 14. Rae1 {[%emt 0:11:22]} Nh5 {[%emt 0:06:07]} 15. Qf3 {[%emt 0:00:37]} g4 {[%emt 0:00:34]} 16. Qe2 {[%emt 0:02:08]} Qh4 {[%emt 0:01:24]} 17. Be3 {[%emt 0:02:27]} Bc7 {[%emt 0:05:24]} 18. g3 {[%emt 0:01:10]} Qf6 {[%emt 0:00:32]} 19. Bd2 {[%emt 0:03:09]} O-O-O {[%emt 0:03:17]} 20. b5 {[%emt 0:02:16]} Bb6 {[%emt 0:11:54]} 21. bxc6 {[%emt 0:01:05]} bxc6 {[%emt 0:00:01]} 22. Na4 {[%emt 0:02:31]} Kc7 {[%emt 0:02:05]} 23. Nxb6 {[%emt 0:00:18]} axb6 {[%emt 0:00:01]} 24. e5 {[%emt 0:02:20]} dxe5 {[%emt 0:00:33]} 25. Qxe5+ {[%emt 0:00:17]} Qxe5 {[%emt 0:00:39]} 26. Rxe5 {[%emt 0:00:08]} Nf6 {[%emt 0:02:36]} 27. Bf4 {[%emt 0:03:32]} Kb7 {[%emt 0:00:51]} 28. Rb1 {[%emt 0:02:17]} Nd5 {[%emt 0:01:02]} 29. Bd2 {[%emt 0:00:30]} Ra8 {[%emt 0:02:28]} 30. Rb2 {[%emt 0:01:44]} Ra4 {[%emt 0:02:14]} 31. c4 {[%emt 0:01:46]} Ne7 {[%emt 0:00:05]} 32. Be3 {[%emt 0:01:28]} Nc8 {[%emt 0:00:52]} 33. c5 {[%emt 0:03:28]} b5 {[%emt 0:01:19]} 34. Be4 {[%emt 0:02:09]} Bc4 {[%emt 0:00:47]} 35. Bf5 {[%emt 0:02:43]} Bxa2 {[%emt 0:00:58]} 36. Bxc8+ {[%emt 0:01:03]} Kxc8 {[%emt 0:02:53]} 37. Re2 {[%emt 0:02:24]} Bd5 {[%emt 0:01:07]} 38. Re1 {[%emt 0:00:19]} Re4 {[%emt 0:02:23]} 39. Rh5 {[%emt 0:02:35]} Re6 {[%emt 0:01:04]} 40. Ra1 {[%emt 0:01:41]} Kb7 {[%emt 0:00:10]} 41. Rb1 {[%emt 0:03:51]} Ka6 {[%emt 0:13:02]} 42. Ra1+ {[%emt 0:00:42]} Kb7 {[%emt 0:00:01]} 43. Rb1 {[%emt 0:00:08]} Be4 {[%emt 0:00:46]} 44. Rd1 {[%emt 0:02:49]} Ka6 {[%emt 0:05:26]} 45. Ra1+ {[%emt 0:00:33]} Kb7 {[%emt 0:00:05]} 46. Rd1 {[%emt 0:00:05]} Ra8 {[%emt 0:05:05]} 47. Rd7+ {[%emt 0:07:58]} Kc8 {[%emt 0:00:12]} 48. Rd1 {[%emt 0:00:16]} b4 {[%emt 0:00:37]} 49. Bxh6 {[%emt 0:01:17]} Bc2 {[%emt 0:01:42]} 50. Rf1 {[%emt 0:05:33]} b3 {[%emt 0:00:37]} 51. Bf4 {[%emt 0:01:39]} b2 {[%emt 0:01:07]} 0-1